fUSD/lending_fUSD_20260630
["ID","MTS","AMOUNT","RATE_DAILY","PERIOD"]
[426695773,1782748814000,-982.72,0.00012843,2]
[426695782,1782748934000,500.0,0.00012797,3]
[426695785,1782749032000,-200.0,0.00012759,2]
[426695786,1782749033000,3070.03,0.00012672,2]
[426695789,1782749068000,-199.5,0.00012809,2]
[426695791,1782749086000,-250.0,0.00012834,2]
[426695792,1782749139000,-150.0,0.00012859,2]
[426695793,1782749148000,206.25,0.00012551,2]
[426695794,1782749153000,-362.0,0.00012932,2]
[426695796,1782749192000,-1331.81,0.00012932,2]
[426695797,1782749193000,170.67,0.00012573,2]
[426695798,1782749245000,-154.52,0.00012932,2]
[426695802,1782749246000,2700.0,0.000144,5]
[426695801,1782749246000,2000.0,0.000139,5]
[426695800,1782749246000,1300.0,0.000138,5]
[426695799,1782749246000,600.0,0.000137,5]
[426695803,1782749247000,3300.0,0.000145,5]
[426695804,1782749249000,157.67,0.00012573,2]
[426695809,1782749250000,-2099.55,0.00013285,2]
[426695810,1782749250000,-1000.0,0.0001329,2]
[426695808,1782749250000,-182.39409563,0.00013192,2]
[426695807,1782749250000,-182.39409563,0.00013192,2]
[426695806,1782749250000,-182.39409564,0.00013191,2]
[426695805,1782749250000,600.0,0.000146,5]
[426695811,1782749250000,-150.0,0.00013291,2]
[426695812,1782749252000,600.0,0.000147,5]
[426695813,1782749254000,600.0,0.000148,5]
[426695814,1782749256000,600.0,0.000149,5]
[426695815,1782749284000,161.4,0.00012635,2]
[426695817,1782749299000,1292.78511429,0.00013568,3]
[426695816,1782749299000,-500.0,0.00013293,2]
[426695818,1782749306000,500.0,0.00013019,2]
[426695820,1782749306000,121.9477131,0.00013019,2]
[426695821,1782749306000,1656.84,0.00012645,2]
[426695819,1782749306000,500.0,0.00013019,2]
[426695824,1782749320000,-500.0,0.00013019,2]
[426695831,1782749320000,-332.91492897,0.00013019,2]
[426695830,1782749320000,-500.0,0.00013019,2]
[426695829,1782749320000,-500.0,0.00013019,2]
[426695827,1782749320000,-238.08670734,0.00013019,2]
[426695828,1782749320000,-500.0,0.00013019,2]
[426695826,1782749320000,-500.0,0.00013019,2]
[426695825,1782749320000,-150.0,0.00013019,2]
[426695823,1782749320000,-150.0,0.00013019,2]
[426695822,1782749320000,-109.86242302,0.00013019,2]
[426695841,1782749321000,-451.82287054,0.00013019,2]
[426695843,1782749321000,-188.72095468,0.00013019,2]
[426695846,1782749321000,-500.0,0.00013019,2]
[426695845,1782749321000,-500.0,0.00013019,2]
[426695842,1782749321000,-500.0,0.00013019,2]
[426695844,1782749321000,-500.0,0.00013019,2]
[426695840,1782749321000,-48.17712946,0.00013019,2]
[426695833,1782749321000,-500.0,0.00013019,2]
[426695837,1782749321000,-500.0,0.00013019,2]
[426695838,1782749321000,-500.0,0.00013019,2]
[426695835,1782749321000,-500.0,0.00013019,2]
[426695836,1782749321000,-500.0,0.00013019,2]
[426695834,1782749321000,-265.60185884,0.00013019,2]
[426695832,1782749321000,-167.08507103,0.00013019,2]
[426695839,1782749321000,-500.0,0.00013019,2]
[426695847,1782749321000,-500.0,0.00013019,2]
[426695861,1782749321000,-500.0,0.00013019,2]
[426695849,1782749321000,150.0,0.00012643,2]
[426695864,1782749321000,-500.0,0.00013019,2]
[426695848,1782749321000,-340.32023411,0.00013019,2]
[426695863,1782749321000,-251.43799297,0.00013019,2]
[426695860,1782749321000,-500.0,0.00013019,2]
[426695858,1782749321000,-178.81570656,0.00013019,2]
[426695859,1782749321000,-500.0,0.00013019,2]
[426695857,1782749321000,-321.18429344,0.00013019,2]
[426695862,1782749321000,-500.0,0.00013019,2]
[426695854,1782749321000,-500.0,0.00013019,2]
[426695855,1782749321000,-500.0,0.00013019,2]
[426695852,1782749321000,-500.0,0.00013019,2]
[426695851,1782749321000,-500.0,0.00013019,2]
[426695853,1782749321000,-500.0,0.00013019,2]
[426695850,1782749321000,-159.67976589,0.00013019,2]
[426695856,1782749321000,-500.0,0.00013019,2]
[426695875,1782749322000,-222.56472783,0.00013294,2]
[426695873,1782749322000,-500.0,0.00013294,2]
[426695871,1782749322000,-475.82675339,0.00013294,2]
[426695872,1782749322000,-500.0,0.00013294,2]
[426695866,1782749322000,-65.3896402,0.00013019,2]
[426695868,1782749322000,-152.65112834,0.00013293,2]
[426695867,1782749322000,-509.56126523,0.00013019,2]
[426695865,1782749322000,-550.6103598,0.00013019,2]
[426695874,1782749322000,-277.43527217,0.00013294,2]
[426695870,1782749322000,-500.0,0.00013294,2]
[426695876,1782749322000,-500.0,0.00013294,2]
[426695869,1782749322000,-500.0,0.00013294,2]
[426695878,1782749322000,-150.0,0.00013294,2]
[426695887,1782749322000,-2228.57914798,0.00013317,2]
[426695886,1782749322000,-295.14008866,0.00013294,2]
[426695885,1782749322000,-39.74756221,0.00013294,2]
[426695884,1782749322000,-460.25243779,0.00013294,2]
[426695877,1782749322000,-500.0,0.00013294,2]
[426695888,1782749322000,2227.06,0.00012643,2]
[426695882,1782749322000,-150.0,0.00013294,2]
[426695881,1782749322000,-500.0,0.00013294,2]
[426695879,1782749322000,-500.0,0.00013294,2]
[426695880,1782749322000,-343.1176374,0.00013294,2]
[426695883,1782749322000,-154.92925631,0.00013294,2]
[426695890,1782749333000,133.34,0.00012285,2]
[426695891,1782749333000,33.32,0.00012285,2]
[426695889,1782749333000,166.66,0.00012032,2]
[426695892,1782749334000,166.66,0.00012538,2]
[426695893,1782749352000,-166.66,0.00012791,2]
[426695894,1782749359000,-166.66,0.00013045,2]
[426695896,1782749359000,-883.95353797,0.00013293,2]
[426695895,1782749359000,-883.95353797,0.00013293,2]
[426695898,1782749359000,-883.95353797,0.00013293,2]
[426695899,1782749359000,-883.95353797,0.00013293,2]
[426695900,1782749359000,-823.15467015,0.00013293,2]
[426695897,1782749359000,-883.95353797,0.00013293,2]
[426695901,1782749360000,800.0,0.000137,5]
[426695902,1782749362000,1600.0,0.000138,5]
[426695903,1782749364000,2400.0,0.000139,5]
[426695904,1782749366000,3200.0,0.000144,5]
[426695905,1782749368000,4000.0,0.000145,5]
[426695906,1782749370000,800.0,0.000146,5]
[426695907,1782749373000,800.0,0.000147,5]
[426695908,1782749375000,800.0,0.000148,5]
[426695909,1782749377000,800.0,0.000149,5]
[426695910,1782749379000,500.0,0.00013293,2]
[426695911,1782749387000,594.08,0.00012585,2]
[426695912,1782749387000,550.92,0.00012585,2]
[426695913,1782749406000,-60.79886782,0.00013293,2]
[426695914,1782749417000,-150.0,0.00013293,2]
[426695926,1782749431000,-883.95353797,0.00013293,2]
[426695925,1782749431000,-883.95353797,0.00013293,2]
[426695923,1782749431000,-883.95353797,0.00013293,2]
[426695921,1782749431000,-883.95353797,0.00013293,2]
[426695922,1782749431000,-883.95353797,0.00013293,2]
[426695920,1782749431000,-883.95353797,0.00013293,2]
[426695919,1782749431000,-883.95353797,0.00013293,2]
[426695918,1782749431000,-883.95353797,0.00013293,2]
[426695924,1782749431000,-883.95353797,0.00013293,2]
[426695965,1782749432000,-883.95353797,0.00013293,2]
[426695969,1782749432000,-883.95353797,0.00013293,2]
[426695963,1782749432000,-883.95353797,0.00013293,2]
[426695967,1782749432000,-883.95353797,0.00013293,2]
[426695962,1782749432000,-883.95353797,0.00013293,2]
[426695966,1782749432000,-883.95353797,0.00013293,2]
[426695968,1782749432000,-883.95353797,0.00013293,2]
[426695970,1782749432000,-883.95353797,0.00013293,2]
[426695960,1782749432000,-883.95353797,0.00013293,2]
[426695971,1782749432000,-883.95353797,0.00013293,2]
[426695964,1782749432000,-883.95353797,0.00013293,2]
[426695974,1782749432000,-775.15925636,0.00013293,2]
[426695973,1782749432000,-775.15925636,0.00013293,2]
[426695975,1782749432000,-775.15925636,0.00013293,2]
[426695976,1782749432000,-775.15925636,0.00013293,2]
[426695977,1782749432000,-775.15925636,0.00013293,2]
[426695980,1782749432000,-775.15925636,0.00013293,2]
[426695982,1782749432000,-775.15925636,0.00013293,2]
[426695979,1782749432000,-775.15925636,0.00013293,2]
[426695994,1782749432000,-775.15925636,0.00013293,2]
[426695981,1782749432000,-775.15925636,0.00013293,2]
[426695978,1782749432000,-775.15925636,0.00013293,2]
[426695984,1782749432000,-775.15925636,0.00013293,2]
[426695961,1782749432000,-883.95353797,0.00013293,2]
[426695972,1782749432000,-775.15925636,0.00013293,2]
[426695957,1782749432000,-883.95353797,0.00013293,2]
[426695931,1782749432000,-883.95353797,0.00013293,2]
[426695954,1782749432000,-883.95353797,0.00013293,2]
[426695986,1782749432000,-775.15925636,0.00013293,2]
[426695934,1782749432000,-883.95353797,0.00013293,2]
[426695935,1782749432000,-883.95353797,0.00013293,2]
[426695932,1782749432000,-883.95353797,0.00013293,2]
[426695936,1782749432000,-883.95353797,0.00013293,2]
[426695933,1782749432000,-883.95353797,0.00013293,2]
[426695938,1782749432000,-883.95353797,0.00013293,2]
[426695939,1782749432000,-883.95353797,0.00013293,2]
[426695937,1782749432000,-883.95353797,0.00013293,2]
[426695940,1782749432000,-883.95353797,0.00013293,2]
[426695941,1782749432000,-883.95353797,0.00013293,2]
[426695942,1782749432000,-883.95353797,0.00013293,2]
[426695945,1782749432000,-883.95353797,0.00013293,2]
[426695947,1782749432000,-883.95353797,0.00013293,2]
[426695946,1782749432000,-883.95353797,0.00013293,2]
[426695944,1782749432000,-883.95353797,0.00013293,2]
[426695943,1782749432000,-883.95353797,0.00013293,2]
[426695948,1782749432000,-883.95353797,0.00013293,2]
[426695950,1782749432000,-883.95353797,0.00013293,2]
[426695951,1782749432000,-883.95353797,0.00013293,2]
[426695949,1782749432000,-883.95353797,0.00013293,2]
[426695959,1782749432000,-883.95353797,0.00013293,2]
[426695952,1782749432000,-883.95353797,0.00013293,2]
[426695953,1782749432000,-883.95353797,0.00013293,2]
[426695956,1782749432000,-883.95353797,0.00013293,2]
[426695958,1782749432000,-883.95353797,0.00013293,2]
[426695985,1782749432000,-775.15925636,0.00013293,2]
[426696025,1782749432000,-500.0,0.00013316,2]
[426695995,1782749432000,-775.15925636,0.00013293,2]
[426696018,1782749432000,-353.43742277,0.00013316,2]
[426696019,1782749432000,-500.0,0.00013316,2]
[426696021,1782749432000,-500.0,0.00013316,2]
[426696022,1782749432000,-500.0,0.00013316,2]
[426696023,1782749432000,-324.68895267,0.00013316,2]
[426696024,1782749432000,-500.0,0.00013316,2]
[426696026,1782749432000,-500.0,0.00013316,2]
[426696020,1782749432000,-500.0,0.00013316,2]
[426696029,1782749432000,-10629.200833,0.00013317,2]
[426696027,1782749432000,-500.0,0.00013316,2]
[426696028,1782749432000,-549.45514253,0.00013316,2]
[426696016,1782749432000,-500.0,0.00013316,2]
[426696031,1782749432000,-4120.066,0.00013368,2]
[426696040,1782749432000,-198.31775247,0.00013424,2]
[426696039,1782749432000,-500.0,0.00013424,2]
[426696032,1782749432000,-287.162,0.00013368,2]
[426696033,1782749432000,-162.3416441,0.00013387,2]
[426696036,1782749432000,-500.0,0.00013424,2]
[426696034,1782749432000,-150.0,0.00013423,2]
[426696035,1782749432000,-500.0,0.00013424,2]
[426696038,1782749432000,-500.0,0.00013424,2]
[426696037,1782749432000,-500.0,0.00013424,2]
[426696041,1782749432000,-500.0,0.00013424,2]
[426695983,1782749432000,-775.15925636,0.00013293,2]
[426696030,1782749432000,-304.0,0.00013317,2]
[426696017,1782749432000,-500.0,0.00013316,2]
[426696042,1782749432000,-314.26787065,0.00013424,2]
[426696008,1782749432000,-482.36042421,0.00013293,2]
[426696010,1782749432000,-775.15925639,0.00013293,2]
[426695987,1782749432000,-775.15925636,0.00013293,2]
[426695991,1782749432000,-775.15925636,0.00013293,2]
[426695989,1782749432000,-775.15925636,0.00013293,2]
[426695988,1782749432000,-775.15925636,0.00013293,2]
[426695993,1782749432000,-775.15925636,0.00013293,2]
[426695992,1782749432000,-775.15925636,0.00013293,2]
[426695996,1782749432000,-775.15925636,0.00013293,2]
[426695997,1782749432000,-775.15925636,0.00013293,2]
[426695998,1782749432000,-775.15925636,0.00013293,2]
[426696003,1782749432000,-775.15925636,0.00013293,2]
[426696002,1782749432000,-775.15925636,0.00013293,2]
[426695999,1782749432000,-775.15925636,0.00013293,2]
[426695990,1782749432000,-775.15925636,0.00013293,2]
[426696005,1782749432000,-775.15925636,0.00013293,2]
[426696000,1782749432000,-775.15925636,0.00013293,2]
[426696004,1782749432000,-775.15925636,0.00013293,2]
[426696006,1782749432000,-500.0,0.00013293,2]
[426696007,1782749432000,-500.0,0.00013293,2]
[426696011,1782749432000,-775.15925639,0.00013293,2]
[426696013,1782749432000,-775.15925639,0.00013293,2]
[426696014,1782749432000,-502.60284518,0.00013293,2]
[426696009,1782749432000,-775.15925639,0.00013293,2]
[426696012,1782749432000,-775.15925639,0.00013293,2]
[426696015,1782749432000,-166.66,0.00013298,2]
[426696001,1782749432000,-775.15925636,0.00013293,2]
[426696083,1782749433000,-26823.40791933,0.00013661,2]
[426696082,1782749433000,-150.0,0.00013654,2]
[426696077,1782749433000,-150.0,0.00013613,2]
[426696081,1782749433000,-150.0,0.00013645,2]
[426696075,1782749433000,-965.88,0.00013569,2]
[426696076,1782749433000,-150.0,0.00013606,2]
[426696074,1782749433000,-500.0,0.00013567,2]
[426696072,1782749433000,-151.0,0.00013566,2]
[426696073,1782749433000,-150.0,0.00013567,2]
[426696080,1782749433000,-154.52,0.00013643,2]
[426696078,1782749433000,-2099.55,0.00013617,2]
[426696096,1782749433000,-278.83218932,0.00013698,2]
[426696084,1782749433000,-11563.85677324,0.00013667,2]
[426696087,1782749433000,-500.0,0.00013698,2]
[426696085,1782749433000,-150.0,0.00013685,2]
[426696086,1782749433000,-500.0,0.00013698,2]
[426696089,1782749433000,-500.0,0.00013698,2]
[426696097,1782749433000,-500.0,0.00013698,2]
[426696090,1782749433000,-500.0,0.00013698,2]
[426696098,1782749433000,-500.0,0.00013698,2]
[426696088,1782749433000,-500.0,0.00013698,2]
[426696099,1782749433000,-500.0,0.00013698,2]
[426696071,1782749433000,-150.0,0.00013527,2]
[426696091,1782749433000,-500.0,0.00013698,2]
[426696079,1782749433000,-150.0,0.00013638,2]
[426696067,1782749433000,-3372.30147849,0.00013518,2]
[426696056,1782749433000,-283.83603472,0.00013488,2]
[426696069,1782749433000,-152.49399697,0.00013518,2]
[426696093,1782749433000,-500.0,0.00013698,2]
[426696051,1782749433000,-151.14744993,0.00013488,2]
[426696048,1782749433000,-150.0,0.00013488,2]
[426696045,1782749433000,-1420.40686814,0.00013469,2]
[426696047,1782749433000,-4988.39797531,0.00013469,2]
[426696043,1782749433000,-273.33010037,0.00013469,2]
[426696050,1782749433000,-150.0,0.00013488,2]
[426696046,1782749433000,-5805.57017145,0.00013469,2]
[426696044,1782749433000,-152.0,0.00013469,2]
[426696049,1782749433000,-150.0,0.00013488,2]
[426696052,1782749433000,-151.14861335,0.00013488,2]
[426696054,1782749433000,-150.0,0.00013488,2]
[426696053,1782749433000,-150.0,0.00013488,2]
[426696057,1782749433000,-150.0,0.00013488,2]
[426696055,1782749433000,-150.0,0.00013488,2]
[426696058,1782749433000,-151.13233997,0.00013488,2]
[426696059,1782749433000,-150.0,0.00013488,2]
[426696061,1782749433000,-166.0554747,0.00013501,2]
[426696063,1782749433000,-14906.15907938,0.00013506,2]
[426696060,1782749433000,-150.0,0.00013488,2]
[426696062,1782749433000,-1113.39576851,0.00013506,2]
[426696065,1782749433000,-2398.81148202,0.00013506,2]
[426696064,1782749433000,-10803.85307153,0.00013506,2]
[426696066,1782749433000,-11563.85677333,0.00013513,2]
[426696068,1782749433000,-152.49399697,0.00013518,2]
[426696070,1782749433000,-883.17640005,0.00013518,2]
[426696095,1782749433000,-500.0,0.00013698,2]
[426696135,1782749433000,-220.86281966,0.00013698,2]
[426696092,1782749433000,-500.0,0.00013698,2]
[426696129,1782749433000,-500.0,0.00013698,2]
[426696132,1782749433000,-500.0,0.00013698,2]
[426696130,1782749433000,-500.0,0.00013698,2]
[426696134,1782749433000,-279.13718034,0.00013698,2]
[426696133,1782749433000,-500.0,0.00013698,2]
[426696131,1782749433000,-231.84853459,0.00013698,2]
[426696136,1782749433000,-500.0,0.00013698,2]
[426696146,1782749433000,-500.0,0.00013698,2]
[426696153,1782749433000,-1428.01,0.00013698,2]
[426696137,1782749433000,-235.02223433,0.00013698,2]
[426696141,1782749433000,-500.0,0.00013698,2]
[426696144,1782749433000,-500.0,0.00013698,2]
[426696145,1782749433000,-500.0,0.00013698,2]
[426696139,1782749433000,-500.0,0.00013698,2]
[426696138,1782749433000,-264.97776567,0.00013698,2]
[426696140,1782749433000,-500.0,0.00013698,2]
[426696143,1782749433000,-500.0,0.00013698,2]
[426696142,1782749433000,-500.0,0.00013698,2]
[426696149,1782749433000,-1428.01,0.00013698,2]
[426696147,1782749433000,-506.85202054,0.00013698,2]
[426696148,1782749433000,-1428.01,0.00013698,2]
[426696150,1782749433000,-1428.01,0.00013698,2]
[426696152,1782749433000,-1428.01,0.00013698,2]
[426696151,1782749433000,-1428.01,0.00013698,2]
[426696094,1782749433000,-500.0,0.00013698,2]
[426696126,1782749433000,-500.0,0.00013698,2]
[426696123,1782749433000,-500.0,0.00013698,2]
[426696154,1782749433000,-560.38241505,0.00013698,2]
[426696128,1782749433000,-500.0,0.00013698,2]
[426696100,1782749433000,-500.0,0.00013698,2]
[426696103,1782749433000,-500.0,0.00013698,2]
[426696102,1782749433000,-500.0,0.00013698,2]
[426696101,1782749433000,-500.0,0.00013698,2]
[426696105,1782749433000,-500.0,0.00013698,2]
[426696104,1782749433000,-500.0,0.00013698,2]
[426696106,1782749433000,-500.0,0.00013698,2]
[426696125,1782749433000,-500.0,0.00013698,2]
[426696110,1782749433000,-500.0,0.00013698,2]
[426696109,1782749433000,-500.0,0.00013698,2]
[426696107,1782749433000,-500.0,0.00013698,2]
[426696108,1782749433000,-500.0,0.00013698,2]
[426696111,1782749433000,-500.0,0.00013698,2]
[426696113,1782749433000,-500.0,0.00013698,2]
[426696112,1782749433000,-424.12596773,0.00013698,2]
[426696122,1782749433000,-500.0,0.00013698,2]
[426696124,1782749433000,-500.0,0.00013698,2]
[426696119,1782749433000,-500.0,0.00013698,2]
[426696118,1782749433000,-500.0,0.00013698,2]
[426696127,1782749433000,-500.0,0.00013698,2]
[426696120,1782749433000,-500.0,0.00013698,2]
[426696116,1782749433000,-500.0,0.00013698,2]
[426696117,1782749433000,-500.0,0.00013698,2]
[426696114,1782749433000,-500.0,0.00013698,2]
[426696115,1782749433000,-500.0,0.00013698,2]
[426696121,1782749433000,-500.0,0.00013698,2]
[426696219,1782749438000,-11563.85677324,0.00013975,2]
[426696218,1782749438000,-26823.40791933,0.00013971,2]
[426696221,1782749438000,-152.49399694,0.00013979,2]
[426696217,1782749438000,-150.0,0.00013961,2]
[426696222,1782749438000,-1983.81,0.00013986,2]
[426696213,1782749438000,-150.0,0.00013916,2]
[426696214,1782749438000,-150.0,0.00013921,2]
[426696215,1782749438000,-150.0,0.00013937,2]
[426696211,1782749438000,-1000.0,0.00013899,2]
[426696216,1782749438000,-2099.55,0.0001395,2]
[426696220,1782749438000,-152.49399696,0.00013979,2]
[426696236,1782749438000,-150.0,0.00014112,2]
[426696225,1782749438000,-150.0,0.00013987,2]
[426696224,1782749438000,-410.83,0.00013986,2]
[426696226,1782749438000,-150.0,0.00013987,2]
[426696234,1782749438000,-150.0,0.00014087,2]
[426696231,1782749438000,-250.0,0.00014071,2]
[426696227,1782749438000,-150.0,0.00013987,2]
[426696228,1782749438000,-10490.12725343,0.0001399,2]
[426696230,1782749438000,-150.0,0.0001404,2]
[426696233,1782749438000,-150.0,0.00014079,2]
[426696229,1782749438000,-150.0,0.00014,2]
[426696232,1782749438000,-500.0,0.00014071,2]
[426696212,1782749438000,-3372.30147842,0.00013913,2]
[426696223,1782749438000,-150.0,0.00013986,2]
[426696205,1782749438000,-150.0,0.00013821,2]
[426696192,1782749438000,-150.0,0.00013702,2]
[426696209,1782749438000,-150.0,0.00013862,2]
[426696183,1782749438000,-867.62758495,0.00013698,2]
[426696184,1782749438000,-1428.01,0.00013698,2]
[426696186,1782749438000,-1428.01,0.00013698,2]
[426696197,1782749438000,-150.0,0.00013764,2]
[426696196,1782749438000,-150.0,0.00013737,2]
[426696188,1782749438000,-1428.01,0.00013698,2]
[426696185,1782749438000,-1428.01,0.00013698,2]
[426696189,1782749438000,-200.0,0.00013699,2]
[426696191,1782749438000,-437.37,0.000137,2]
[426696187,1782749438000,-1428.01,0.00013698,2]
[426696190,1782749438000,-2500.0,0.00013699,2]
[426696206,1782749438000,-11563.85677324,0.00013821,2]
[426696194,1782749438000,-150.0,0.00013724,2]
[426696195,1782749438000,-150.0,0.00013737,2]
[426696198,1782749438000,-500.0,0.00013786,2]
[426696199,1782749438000,-500.0,0.00013786,2]
[426696200,1782749438000,-1428.01,0.00013786,2]
[426696201,1782749438000,-150.0,0.00013787,2]
[426696210,1782749438000,-150.0,0.00013882,2]
[426696207,1782749438000,-500.0,0.00013841,2]
[426696208,1782749438000,-150.0,0.00013843,2]
[426696203,1782749438000,-250.10867952,0.00013816,2]
[426696202,1782749438000,-150.0,0.00013803,2]
[426696204,1782749438000,-26573.29923981,0.00013816,2]
[426696193,1782749438000,-3372.30147842,0.00013715,2]
[426696238,1782749438000,-150.0,0.00014119,2]
[426696235,1782749438000,-3372.30147842,0.0001411,2]
[426696240,1782749438000,-26823.40791933,0.00014126,2]
[426696271,1782749438000,-154.52,0.00014355,2]
[426696273,1782749438000,-150.0,0.00014362,2]
[426696270,1782749438000,-150.0,0.00014344,2]
[426696277,1782749438000,-150.0,0.00014434,2]
[426696279,1782749438000,-11563.85677324,0.00014438,2]
[426696280,1782749438000,-152.49399696,0.00014439,2]
[426696282,1782749438000,-982.72,0.00014448,2]
[426696281,1782749438000,-152.49399694,0.00014439,2]
[426696278,1782749438000,-26823.40791933,0.00014435,2]
[426696285,1782749438000,-150.0,0.00014487,2]
[426696288,1782749438000,-150.0,0.00014513,2]
[426696272,1782749438000,-150.0,0.00014355,2]
[426696284,1782749438000,-150.0,0.00014487,2]
[426696286,1782749438000,-150.0,0.00014487,2]
[426696290,1782749438000,-255.0,0.00014537,2]
[426696289,1782749438000,-150.0,0.00014537,2]
[426696291,1782749438000,-150.0,0.00014552,2]
[426696297,1782749438000,-2099.55,0.00014614,2]
[426696296,1782749438000,-150.0,0.00014612,2]
[426696293,1782749438000,-26823.40791933,0.0001459,2]
[426696294,1782749438000,-11563.85677324,0.00014592,2]
[426696292,1782749438000,-150.0,0.00014558,2]
[426696295,1782749438000,-150.0,0.00014592,2]
[426696237,1782749438000,-500.0,0.00014115,2]
[426696287,1782749438000,-3372.30147842,0.00014505,2]
[426696269,1782749438000,-150.0,0.0001432,2]
[426696283,1782749438000,-150.0,0.00014474,2]
[426696267,1782749438000,-3372.30147842,0.00014308,2]
[426696241,1782749438000,-11563.85677324,0.00014129,2]
[426696268,1782749438000,-150.0,0.00014316,2]
[426696242,1782749438000,-150.0,0.0001413,2]
[426696244,1782749438000,-279.79824217,0.00014151,2]
[426696248,1782749438000,-883.17640003,0.00014209,2]
[426696245,1782749438000,-150.0,0.00014154,2]
[426696250,1782749438000,-221.05758688,0.00014225,2]
[426696243,1782749438000,-157.67,0.00014145,2]
[426696247,1782749438000,-150.0,0.00014198,2]
[426696257,1782749438000,-1000.0,0.00014245,2]
[426696252,1782749438000,-150.0,0.00014237,2]
[426696253,1782749438000,-150.0,0.00014237,2]
[426696254,1782749438000,-150.0,0.00014237,2]
[426696246,1782749438000,-150.0,0.00014158,2]
[426696261,1782749438000,-172.56,0.0001428,2]
[426696266,1782749438000,-11563.85677324,0.00014284,2]
[426696275,1782749438000,-500.0,0.00014389,2]
[426696276,1782749438000,-150.0,0.00014395,2]
[426696264,1782749438000,-2099.55,0.00014282,2]
[426696259,1782749438000,-150.0,0.00014276,2]
[426696274,1782749438000,-150.0,0.00014387,2]
[426696262,1782749438000,-26823.40791933,0.0001428,2]
[426696255,1782749438000,-150.0,0.00014237,2]
[426696260,1782749438000,-1107.28,0.0001428,2]
[426696258,1782749438000,-355.42,0.00014246,2]
[426696256,1782749438000,-150.0,0.00014237,2]
[426696338,1782749439000,-40391.0,0.00014959,2]
[426696347,1782749439000,-150.0,0.00014986,2]
[426696336,1782749439000,-150.0,0.00014947,2]
[426696337,1782749439000,-49747.0,0.00014959,2]
[426696335,1782749439000,-150.0,0.00014907,2]
[426696326,1782749439000,-3372.30147842,0.000149,2]
[426696332,1782749439000,-1086.60688736,0.000149,2]
[426696328,1782749439000,-883.17640003,0.000149,2]
[426696329,1782749439000,-152.49399694,0.000149,2]
[426696330,1782749439000,-11563.85677324,0.000149,2]
[426696339,1782749439000,-873.72,0.00014985,2]
[426696333,1782749439000,-12728.71626165,0.000149,2]
[426696345,1782749439000,-150.0,0.00014986,2]
[426696349,1782749439000,-1683.75052102,0.0001499,2]
[426696344,1782749439000,-150.0,0.00014986,2]
[426696343,1782749439000,-296.29301605,0.00014986,2]
[426696340,1782749439000,-227.17,0.00014985,2]
[426696341,1782749439000,-150.0,0.00014986,2]
[426696346,1782749439000,-150.0,0.00014986,2]
[426696348,1782749439000,-162.4231293,0.00014986,2]
[426696353,1782749439000,-500.0,0.00014999,2]
[426696352,1782749439000,-151.0,0.00014997,2]
[426696354,1782749439000,-500.0,0.00014999,2]
[426696351,1782749439000,-1683.75052102,0.0001499,2]
[426696350,1782749439000,-1683.75052102,0.0001499,2]
[426696331,1782749439000,-26823.40791933,0.000149,2]
[426696342,1782749439000,-150.0,0.00014986,2]
[426696334,1782749439000,-1517.13213561,0.000149,2]
[426696298,1782749439000,-250.0,0.00014622,2]
[426696325,1782749439000,-150.0,0.00014868,2]